Cogmind - Beta 13 @@@ ROGUE MODE // 2024.04.02 @ 21:03:36 Player: Kit Redgrave Result: Self-destructed Performance ------------- Evolutions (1) 500 Regions Visited (4) 800 Robots Destroyed (3) 15 Value Destroyed (30) 30 Prototype IDs (0) 0 Alien Tech Used (0) 0 Bonus (600) 600 TOTAL SCORE: 1945 Bonus ------- Met Imprinter 300 Was Imprinted 300 Cogmind --------- Core Integrity 390/400 Matter 284/300 Energy 253/265 System Corruption 0% Temperature Cool (4) Movement Flying (26) Location -7/Zion Parts ------- > --- POWER (1) -------- Improved Ion Engine > --- PROPULSION (4) --- VTOL Module VTOL Module VTOL Module VTOL Module > --- UTILITY (2) ------ ECM Suite > --- WEAPON (2) ------- Particle Cannon Grenade Launcher > --- INVENTORY (5) ---- Improved Ion Engine VTOL Module VTOL Module EM Pulse Gun CR-A16's Pointy Stick Peak State ------------ > --- POWER ------------ Improved Ion Engine > --- PROPULSION ------- VTOL Module VTOL Module VTOL Module VTOL Module > --- UTILITY ---------- ECM Suite > --- WEAPON ----------- Particle Cannon Grenade Launcher > --- INVENTORY -------- Improved Ion Engine VTOL Module VTOL Module EM Pulse Gun CR-A16's Pointy Stick [Rating: 15] Favorites ----------- Power Improved Ion Engine Engine Improved Ion Engine Propulsion VTOL Module Leg Aluminum Leg Flight Unit VTOL Module Utility ECM Suite Device ECM Suite Storage Small Storage Unit Weapon Grenade Launcher Energy Gun EM Pulse Gun Energy Cannon Particle Cannon Ballistic Gun Light Assault Rifle Launcher Grenade Launcher Build | -11 -10 -9 -9 -7 ------- Run | Yrd Mat Mat Min Zio Slots Evolved 2 | . . 2 . . Power . | . . . . . Propulsion 2 | . . 2 . . Utility . | . . . . . Weapon . | . . . . . Parts Attached 16 | 7 3 6 . . Power 2 | 1 1 . . . Engine 2 | 1 1 . . . Core . | . . . . . Reactor . | . . . . . Propulsion 6 | 2 . 4 . . Treads . | . . . . . Leg 2 | 2 . . . . Wheel . | . . . . . Hover . | . . . . . Flight 4 | . . 4 . . Utility 3 | 1 2 . . . Device 1 | . 1 . . . Storage 2 | 1 1 . . . Processor . | . . . . . Hackware . | . . . . . Protection . | . . . . . Artifact . | . . . . . Weapon 5 | 3 . 2 . . Energy Gun 2 | 2 . . . . Energy Cannon 1 | . . 1 . . Ballistic Gun 1 | 1 . . . . Ballistic Cannon . | . . . . . Launcher 1 | . . 1 . . Special Weapon . | . . . . . Impact Weapon . | . . . . . Slashing Weapon . | . . . . . Piercing Weapon . | . . . . . Special Melee Weapon . | . . . . . Unidentified Prototypes . | . . . . . Parts Lost 1 | . 1 . . . Power . | . . . . . Propulsion . | . . . . . Utility . | . . . . . Weapon 1 | . 1 . . . Highest Loss Streak 1 | . 1 . . . To Critical Strikes . | . . . . . Average Slot Usage (%) 89 | . 93 88 88 88 Engine 11 | . 14 11 11 11 Leg 6 | . 28 3 . . Flight 33 | . . 38 44 44 Device 10 | . 8 11 11 11 Storage 3 | . 14 3 . . Energy Gun 6 | . 27 5 . . Energy Cannon 8 | . . 5 11 11 Launcher 8 | . . 9 11 11 Naked Turns . | . . . . . Heaviest Build 24 | 14 23 24 16 16 Greatest Support 20 | 20 20 16 16 16 Greatest Overweight (x) 1 | . 1 1 . . Average Overweight (x) . | . . . . . Largest Inventory Capacity 10 | 8 10 10 5 5 Average Capacity 5 | 7 8 6 5 5 Most Carried 8 | 5 8 5 4 5 Average Carried 4 | 1 5 3 4 4 Final Capacity 10 | 8 10 5 5 5 Final Carried 6 | 2 6 4 4 5 Class Distribution -------------------- 73% | Sprinter 26% | Mutant Dominant Class ---------------- Mutant | -10/Materials Sprinter | -9/Materials Sprinter | -9/Mines Sprinter | -7/Zion Resources | -11 -10 -9 -9 -7 ----------- Run | Yrd Mat Mat Min Zio Matter Collected 339 | 239 . . . 100 Remotely . | . . . . . Salvage Created 56 | . 56 . . . Parts 7 | . 7 . . . Haulers Intercepted . | . . . . . Recyclers Shooed . | . . . . . Parts Field Recycled . | . . . . . Retrieved Matter . | . . . . . Parts Self-Destructed 3 | . . . . 3 Prevented . | . . . . . Kills | -11 -10 -9 -9 -7 ------- Run | Yrd Mat Mat Min Zio Combat Hostiles Destroyed 3 | . 3 . . . Guns 3 | . 3 . . . Classes Destroyed 1 | . 1 . . . Swarmer 3 | . 3 . . . Best Kill Streak 3 | . 3 . . . Combat Bots Only 3 | . 3 . . . Max Kills in Single Turn 1 | . 1 . . . Gunslinging . | . . . . . Exploded . | . . . . . Melee . | . . . . . Uniques/NPCs Destroyed . | . . . . . Combat | -11 -10 -9 -9 -7 -------- Run | Yrd Mat Mat Min Zio Hostile Shots Fired 26 | . 19 7 . . Missed 6 | . 3 3 . . Damage Taken 205 | . 160 45 . . Core 44 | . 34 10 . . Absorbed by Shields . | . . . . . Core Remaining (%) 93 | 100 86 . . . Volleys Fired 6 | . 6 . . . Largest 2 | . 2 . . . Hottest 80 | . 80 . . . Shots Fired 12 | . 12 . . . Gun 12 | . 12 . . . Cannon . | . . . . . Launcher . | . . . . . Special . | . . . . . Kinetic . | . . . . . Thermal . | . . . . . Explosive . | . . . . . Electromagnetic 12 | . 12 . . . Robot Hit Streak 1 | . 1 . . . Robot Miss Streak 2 | . 2 . . . Penetration Max . | . . . . . Secondary Targets 1 | . 1 . . . Max Gunslinging Chain 1 | . 1 . . . Shots Hit Robots 4 | . 4 . . . Core Hits 3 | . 3 . . . Critical Kills . | . . . . . Critical Parts Destroyed . | . . . . . Critical Strikes . | . . . . . Melee Attacks . | . . . . . Impact . | . . . . . Slashing . | . . . . . Piercing . | . . . . . Sneak Attacks . | . . . . . Combat Hostiles . | . . . . . Follow-up Attacks . | . . . . . Damage Inflicted 44 | . 44 . . . Guns 44 | . 44 . . . Cannons . | . . . . . Explosions . | . . . . . Melee . | . . . . . Ramming . | . . . . . Kinetic . | . . . . . Thermal . | . . . . . Explosive . | . . . . . Electromagnetic 44 | . 44 . . . Impact . | . . . . . Slashing . | . . . . . Piercing . | . . . . . Highest Corruption . | . . . . . Average Corruption . | . . . . . Corruption Purged . | . . . . . Corruption Blocked . | . . . . . Overload Shots . | . . . . . Overflow Damage . | . . . . . Projectiles . | . . . . . Explosions . | . . . . . Melee . | . . . . . Knockbacks . | . . . . . Impact . | . . . . . Kinetic . | . . . . . Secondary . | . . . . . Self-Inflicted Damage . | . . . . . Shots . | . . . . . Rammed . | . . . . . Targets Rammed . | . . . . . Kicked . | . . . . . Crushed . | . . . . . Highest Temperature 90 | . 90 9 . . Average Temperature 31 | . 40 4 . . Received Heat Transfer 87 | . 63 24 . . Siege Activations . | . . . . . Robots Corrupted . | . . . . . Combat Hostiles . | . . . . . Parts Fried . | . . . . . Impact Corruptions . | . . . . . Robots Melted . | . . . . . Combat Hostiles . | . . . . . Parts Melted . | . . . . . Heat Transferred . | . . . . . Parts Sabotaged . | . . . . . Parts Stolen . | . . . . . Parts Stripped . | . . . . . Power Chain Reactions . | . . . . . Alert | -11 -10 -9 -9 -7 ------- Run | Yrd Mat Mat Min Zio Peak Influence 115 | . 70 115 44 . Initial 44 | . . 25 44 . Average 45 | . 56 46 44 . Maximum Alert Level . | . . . . . Low Security (%) 100 | 100 100 100 100 . Level 1 . | . . . . . Level 2 . | . . . . . Level 3 . | . . . . . Level 4 . | . . . . . Level 5 . | . . . . . High Security . | . . . . . Max Security . | . . . . . Squads Dispatched . | . . . . . Investigation . | . . . . . Extermination . | . . . . . Reinforcement . | . . . . . Assault . | . . . . . Garrison . | . . . . . Intercept . | . . . . . Searches Triggered . | . . . . . Construction Impeded . | . . . . . Haulers Reinforced . | . . . . . Active Scanning Responses . | . . . . . Cargo Convoy Interrupts . | . . . . . Stealth | -11 -10 -9 -9 -7 --------- Run | Yrd Mat Mat Min Zio Distress Signals 1 | . . 1 . . Communications Jammed . | . . . . . Distress Signals . | . . . . . Times Spotted 18 | . 5 13 . . Peak Tracking Total 16 | . 3 16 . . Tactical Retreats 2 | . . 2 . . Traps | -11 -10 -9 -9 -7 ------- Run | Yrd Mat Mat Min Zio Traps Triggered . | . . . . . Indirectly . | . . . . . Trap Hack Attempts . | . . . . . Triggered . | . . . . . Disarmed . | . . . . . Reprogrammed . | . . . . . Reused . | . . . . . Traps Extracted . | . . . . . Installed . | . . . . . Triggered . | . . . . . Machines | -11 -10 -9 -9 -7 ---------- Run | Yrd Mat Mat Min Zio Machines Disabled . | . . . . . Max in Single Turn . | . . . . . Machines Repaired . | . . . . . Machines Dismantled . | . . . . . Machines Sabotaged . | . . . . . Overloaded Fab Kills . | . . . . . Hacking | -11 -10 -9 -9 -7 --------- Run | Yrd Mat Mat Min Zio Machines Accessed 1 | . 1 . . . Terminals 1 | . 1 . . . Fabricators . | . . . . . Repair Stations . | . . . . . Recycling Units . | . . . . . Scanalyzers . | . . . . . Garrison Access . | . . . . . Total Hacks 1 | . 1 . . . Successful 1 | . 1 . . . Failed . | . . . . . Catastrophic . | . . . . . Database Lockouts . | . . . . . Manual . | . . . . . Terminals 1 | . 1 . . . Fabricators . | . . . . . Repair Stations . | . . . . . Recycling Units . | . . . . . Scanalyzers . | . . . . . Garrison Access . | . . . . . Terminal Hacks 1 | . 1 . . . Record 1 | . 1 . . . Fabricator Hacks . | . . . . . Repair Station Hacks . | . . . . . Recycling Unit Hacks . | . . . . . Scanalyzer . | . . . . . Garrison Access Hacks . | . . . . . Unauthorized Hacks . | . . . . . Terminals . | . . . . . Fabricators . | . . . . . Repair Stations . | . . . . . Recycling Units . | . . . . . Scanalyzers . | . . . . . Garrison Access . | . . . . . Data Cores Recovered . | . . . . . Used . | . . . . . Hacking Detections . | . . . . . Full Trace Events . | . . . . . Feedback Events . | . . . . . Feedback Blocked . | . . . . . Robot Schematics Acquired 3 | . . . . 3 Robots Built . | . . . . . Authchips . | . . . . . Time . | . . . . . Total Robot Build Rating . | . . . . . Part Schematics Acquired 14 | . . . . 14 Parts Built . | . . . . . Authchips . | . . . . . Time . | . . . . . Total Part Build Rating . | . . . . . Parts Repaired . | . . . . . Time . | . . . . . Parts Recycled . | . . . . . Recycled Matter . | . . . . . Retrieved Matter . | . . . . . Retrieved Components . | . . . . . Parts Scanalyzed . | . . . . . Part Schematics Acquired . | . . . . . Parts Damaged . | . . . . . Bothacking | -11 -10 -9 -9 -7 ------------ Run | Yrd Mat Mat Min Zio Used RIF Installer . | . . . . . Robots Hacked . | . . . . . Non-combat . | . . . . . Combat . | . . . . . Robot Hacks Applied . | . . . . . Relay Couplers Released . | . . . . . Fabnet Peak Effective % . | . . . . . Robots Rewired . | . . . . . Allies Hacked . | . . . . . Hacks Repelled . | . . . . . Allies | -11 -10 -9 -9 -7 -------- Run | Yrd Mat Mat Min Zio Total Allies 4 | . . . . 4 Largest Group 4 | . . . . 4 Highest-Rated Group 156 | . . . . 156 Highest-Rated Ally 40 | . . . . 40 Total Orders . | . . . . . Ally Attacks . | . . . . . Total Damage . | . . . . . Kills . | . . . . . Allies Corrupted . | . . . . . Allies Melted . | . . . . . Intel | -11 -10 -9 -9 -7 ------- Run | Yrd Mat Mat Min Zio Robot Analysis Total . | . . . . . Derelict Logs Recovered 1 | . . . . 1 Drone Launches . | . . . . . Drone Recoveries . | . . . . . Exploration | -11 -10 -9 -9 -7 ------------- Run | Yrd Mat Mat Min Zio Turns Passed 1490 | 79 329 60 36 986 Spaces Moved 1400 | 49 228 133 135 855 Core 9 | 9 . . . . Treads . | . . . . . Legs 268 | 40 228 . . . Wheels . | . . . . . Hover . | . . . . . Flight 1123 | . . 133 135 855 Fastest Speed 26 | 50 120 26 26 26 Average Speed 46 | 107 129 32 26 26 Slowest Speed 190 | 120 190 106 26 26 Overloaded Moves . | . . . . . Propulsion Burnouts . | . . . . . Robots Hopped 2 | . . 2 . . Cave-ins Triggered . | . . . . . Exploration Rate (%) 38 | 5 37 16 53 79 Regions Visited 4 Branch Regions 2 Pre-discovered Areas 1 | . . . . 1 Known Exits Taken . | . . . . . Unknown Exits Taken 4 | 1 1 1 1 . Scrap Searched 3 | . . . . 3 Spaces Dug . | . . . . . Terrain Destroyed . | . . . . . Melee . | . . . . . Projectile . | . . . . . AOE . | . . . . . Terrain Rammed . | . . . . . Walls Destroyed . | . . . . . Machines Disabled . | . . . . . Actions | -11 -10 -9 -9 -7 --------- Run | Yrd Mat Mat Min Zio Total 2225 | 75 251 146 135 1618 Wait 781 | 12 2 4 1 762 Move 1392 | 48 227 128 134 855 Hop 2 | . . 2 . . Pick Up 21 | 8 9 3 . 1 Fast Attach . | . . . . . Attach 10 | 6 1 3 . . Detach . | . . . . . Swap 6 | 1 2 3 . . Drop 7 | . 4 3 . . Fire 6 | . 6 . . . Melee . | . . . . . Ram . | . . . . . Kick . | . . . . . Crush . | . . . . . Escape Stasis . | . . . . . Rewire . | . . . . . Trap . | . . . . . Miscellaneous . | . . . . . Route ------- -11/Scrapyard -10/Materials (discovered 2 exits: [*Mat] / [*Min]) -9/Materials -9/Mines (discovered 2 exits: [*Mat] / [*Zio]) -7/Zion History --------- Turn | Location | Event 8 | -11/Scrapyard | Discovered new exit (range 16) 80 | -11/Scrapyard | Entered Materials 217 | -10/Materials | Discovered new exit (range 9) 301 | -10/Materials | Build established: Mutant 325 | -10/Materials | Discovered new exit (range 14) 409 | -10/Materials | Entered another Materials area 409 | -9/Materials | Evolved 2 slots: Propulsion x2 467 | -9/Materials | Discovered new exit (range 8) 469 | -9/Materials | Entered Mines 473 | -9/Mines | Discovered new exit (range 6) 501 | -9/Mines | Met a Derelict bent on vengeance 503 | -9/Mines | A Derelict revealed a hidden shortcut to a safe place 505 | -9/Mines | Entered Zion 637 | -7/Zion | Found CR-A16's Pointy Stick 680 | -7/Zion | Learned location of Warlord (-4) 703 | -7/Zion | Build established: Sprinter 769 | -7/Zion | Imprinted 771 | -7/Zion | Declared Zion's savior 1491 | -7/Zion | Self-destructed Last Messages --------------- 00786_ Imprinter is transmitting encrypted data deep into the caves. 00788_ C6-KAN(M): "There's no telling where there might be Unaware spies, waiting in hiding for this very moment!" 00826_ Imprinter is transmitting encrypted data deep into the caves. 01065_ PUBLIC SERVICE ANNOUNCEMENT: Quarantine Array scanned 1 system, cleaned 0. 01069_ PUBLIC SERVICE ANNOUNCEMENT: Unaware detected at Zion entryway. Avoid the area unless you're armed and dangerous. 01077_ Imprinter is transmitting encrypted data deep into the caves. 01220_ TH-7ME(z) plays with the Twisted Machinery. 01346_ U7-MN9(z) scatters some of the Twisted Machinery. 01365_ NU-Z0S(z) fiddles with the Twisted Machinery. 01383_ U7-MN9(z) fiddles with the Twisted Machinery. 01385_ Acquired 67 matter. 01386_ Acquired 1 matter. 01396_ U7-MN9(z) examines a few pieces of the Twisted Machinery. 01423_ NA-RQT(z) fiddles with the Twisted Machinery. 01428_ 2P-7QH(z) examines a few pieces of the Twisted Machinery. A8-PSE(c): Are you plugged in yet? I've got the latest and greatest hardware for listening in on those chatty Unaware! So what are you? A scout? A skirmisher? Nah, you strike me as the looter type... Map ----- +----------------------------------------------------+ | ?????????????????????????????????????????#""" | | ??????????????????????????????????????#####"" | | ??????????????????????????????? ??????#""""" | | ???????????????????????????"""" ??????##" | | ??????????????????????????"" ?????#""" | | ??????????????????????????" ?????##"" | | ??????????????????????????" ""#"##"" | | ??????????????????????????"" """"##""" " | | ??????????????????????????"" ""#"#""" " | | ???????????????????????????" """"""""" "" | | ??????????????????????????? "" """"" """ | | ???????????????????????????? "" "" """ | | ????????????????????????????""""" | | ????????????????????????????""""" | | ?????????????????????????????#"" | | ?????????????????????????????##" """"" | | ?????????????????????????????#"" """"" | | ?????????????????????????????#"" """" " | | ????????????????????????????###" """ " | | ???????????????????????????##""" """ """""" | | ???????????????????????????#""" """ """"""" | | ???????????????????????????##" """ """" "" | | ???????????????????????????#"" "" | | ???????????????????????#####"" "" | | ???????????????????????#!!##"" " | | ??????????????????????##@!" "" " | | ??????????????????????#c """ "" "" | | ??????????????????????##! " "" """ "" | | ???????????????????????#!!#" """ "#"" "" | | ???????????????????????##### "" ""#" " | | ???????????????????????????#### """" " | | ??????????????????????????????# z """"" " | | ????????????????????????????""" "##"" " | | ???????????????????????????#""" ""#""" " | | ???????????????????????????""" z""#""" | | ???????????????????????????#" "###"" " | | ???????????????????????????"" ######"" " | | ??????????????????????????##" ####""" | | ???????????????????????????#" #""#"" | | ???????????????????????????"" """"""" | | ???????????????????????????"" " | | ???????????????????????????""" " | | ????????????????????????????"""" """" " # | | ?????????????????????????????""" """" """ " " | | ???????????????####?###########" """"""""" " " | | ???????????????#"""##""##"#"""#""""""#""#" " " | | ?????###########"#"""""""""#"#"#""" ""##"" " # | | ?????""""""""" #""" """""""""" """"" " " | | ????"""""""""" #""" """"" " # | | ?????" #""" """" " " | +----------------------------------------------------+ Best States ------------- Heat Dissipation 28 Energy Generation 12 Energy Capacity 265 Matter Stores 284 Matter Capacity 300 Sight Range 16 Terrain Scan Density 10 ECM Strength 1 Evasion (%) 64 Item Schematics ----------------- Hvy. Shock Bomb Launcher | -7/Zion | Archive Mak. System Shield | -7/Zion | Archive Energy Well | -7/Zion | Archive Mak. Power Source | -7/Zion | Archive Hvy. Flak Cannon | -7/Zion | Archive Mak. Hacking Suite | -7/Zion | Archive Imp. Medium Treads | -7/Zion | Archive Imp. Carbon-fiber Leg | -7/Zion | Archive Imp. Actuator Array | -7/Zion | Archive Imp. Shield Generator | -7/Zion | Archive Lgt. Angular Momentum Engine | -7/Zion | Archive Xenon Bombardment Thruster | -7/Zion | Archive Gravmag System | -7/Zion | Archive Adv. Signal Interpreter | -7/Zion | Archive Robot Schematics ------------------ A-02 Transporter | -7/Zion | Archive Y-45 Defender | -7/Zion | Archive L-31 Rogue | -7/Zion | Archive Fabricated ------------ Nothing Alien Tech Used ----------------- None Achievements -------------- Robot Respite The One Challenges ------------ None Game ------ Seed ExplosiveCouplerBarrier Manual? 0 Play Time 00:27:08 Cumulative 3.2 hours Start 2024.04.02 @ 20:22:28 End 2024.04.02 @ 21:03:36 Sessions 1 Manual Loads 0 Difficulty Rogue Special Mode None Game No. 10 Rogue 10 Adventurer 0 Explorer 0 Win Type - Total 0 Types 0/0/0/0/0/0/0/0/0 Lore% 13 Gallery% 8 Achievement% 10 Wizard Run 0 Options --------- Layout 0 ASCII 0 Keyboard 0 Movement Mouse Keybinds 0 Fullscreen 1 Font 24/Terminus Map View 113x50 Zoom Use 0% Tactical HUD 1 Map Filters NONE Filters NONE Steam 1 RUN: 11be7c44-87c5-4a38-9ce7-b270af526a56